Cogmind - Beta 17 @@@ ROGUE MODE // 2026.08.01 @ 00:43:57 Player: 4R-ZE3 Result: Heading to fleet! Performance ------------- Evolutions (9) 4500 Regions Visited (18) 3600 Robots Destroyed (43) 215 Value Destroyed (1513) 1513 Prototype IDs (15) 300 Alien Tech Used (7) 1400 Bonus (15980) 15980 TOTAL SCORE: 27508 Bonus ------- Triggered Max Security 2000 High Alert Combat Kills 180 Registered with UFD 300 Met Optimus in HQ 500 Met Warlord at Base 500 MAIN.C Attacked Warlord 500 Used Core Reset Matrix 3000 Scanned by Researcher 500 Pursued by Intercept 500 Integrated Exoskeleton 5000 Win 3000 Cogmind --------- Core Integrity 1114/1600 Matter 99/300 Energy 448/450 System Corruption 0% Temperature Cool (0) Movement Walking (90) Ox1 Location To Fleet Rendezvous Parts ------- > --- POWER (1) -------- Quantum Reactor > --- PROPULSION (3) --- Sigix Exoskeleton > --- UTILITY (3) ------ Large Storage Unit Spacefold Activator > --- WEAPON (4) ------- Sigix Sheargun Sigix Sheargun Sigix Sheargun Sigix Sheargun > --- INVENTORY (15) --- Micro-nuke Launcher Core Stripper Peak State ------------ > --- POWER ------------ Quantum Reactor > --- PROPULSION ------- Sigix Exoskeleton > --- UTILITY ---------- Large Storage Unit Spacefold Activator > --- WEAPON ----------- Sigix Sheargun Sigix Sheargun Sigix Sheargun Sigix Sheargun > --- INVENTORY -------- Micro-nuke Launcher Core Stripper [Rating: 233] Favorites ----------- Power Micro Antimatter Reactor Engine Light Ion Engine Power Core Light Fission Core Reactor Micro Antimatter Reactor Propulsion Light Treads Treads Light Treads Leg Sigix Exoskeleton Wheel Armored Wheel Hover Unit Hover Unit Flight Unit Field Propulsion Array Utility Large Storage Unit Device Improved Sensor Array Storage Large Storage Unit Processor Advanced Signal Interpreter Hackware System Shield Protection Medium Armor Plating Artifact Spacefold Activator Weapon Subdweller Beam Cannon Energy Gun Sigix Sheargun Energy Cannon Subdweller Beam Cannon Ballistic Gun Light Assault Rifle Ballistic Cannon Battle Cannon Launcher Micro-nuke Launcher Impact Weapon Heavy Mace Slashing Weapon Carbide Saw Piercing Weapon Force Lance Build | -11 -10 -10 -8 -8 -6 -6 -6 -5 -4 -4 -4 -4 -3 -3 -2 -2 -2 -1 ------- Run | Yrd Mat Sub Rec Scr Fac Was Fac Fac Fac Upp Upp War Pro Res Res Qua Sec Acc Slots Evolved 18 | . . . . . 8 . . 2 2 . . . . 2 2 . . 2 Power 2 | . . . . . 1 . . . . . . . . 1 . . . . Propulsion 8 | . . . . . 4 . . 1 1 . . . . 1 1 . . . Utility 6 | . . . . . 3 . . 1 1 . . . . . 1 . . . Weapon 2 | . . . . . . . . . . . . . . . . . . 2 Parts Attached 105 | 6 5 11 . 7 14 1 2 10 21 2 . 4 . 1 3 6 8 4 Power 15 | 1 1 3 . 1 1 . 1 1 2 . . 1 . 1 . 1 1 . Engine 6 | 1 1 3 . . . . . 1 . . . . . . . . . . Core 5 | . . . . 1 1 . 1 . 1 . . 1 . . . . . . Reactor 4 | . . . . . . . . . 1 . . . . 1 . 1 1 . Propulsion 40 | 2 1 3 . 5 6 1 . 6 10 . . 1 . . 1 3 1 . Treads 9 | 2 1 3 . 3 . . . . . . . . . . . . . . Leg . | . . . . . . . . . . . . . . . . . . . Wheel 2 | . . . . 2 . . . . . . . . . . . . . . Hover 18 | . . . . . 6 1 . 6 4 . . . . . . . 1 . Flight 11 | . . . . . . . . . 6 . . 1 . . 1 3 . . Utility 31 | 1 3 . . 1 6 . 1 3 7 2 . 2 . . 2 1 2 . Device 17 | . 1 . . . 4 . 1 1 6 2 . 1 . . 1 . . . Storage 4 | 1 2 . . . . . . . 1 . . . . . . . . . Processor 2 | . . . . . 1 . . 1 . . . . . . . . . . Hackware 4 | . . . . . 1 . . 1 . . . 1 . . 1 . . . Protection 2 | . . . . 1 . . . . . . . . . . . 1 . . Artifact 2 | . . . . . . . . . . . . . . . . . 2 . Weapon 19 | 2 . 5 . . 1 . . . 2 . . . . . . 1 4 4 Energy Gun 5 | 1 . . . . . . . . . . . . . . . . . 4 Energy Cannon 5 | . . 3 . . . . . . . . . . . . . . 2 . Ballistic Gun 2 | 1 . 1 . . . . . . . . . . . . . . . . Ballistic Cannon 1 | . . 1 . . . . . . . . . . . . . . . . Launcher 1 | . . . . . . . . . . . . . . . . . 1 . Special Weapon . | . . . . . . . . . . . . . . . . . . . Impact Weapon 2 | . . . . . . . . . 1 . . . . . . . 1 . Slashing Weapon 2 | . . . . . 1 . . . 1 . . . . . . . . . Piercing Weapon 1 | . . . . . . . . . . . . . . . . 1 . . Special Melee Weapon . | . . . . . . . . . . . . . . . . . . . Unidentified Prototypes 8 | . . . . . . . . 1 2 . . . . . . 1 4 . Corrupted Parts 1 | . . . . . . . . . . . . 1 . . . . . . System Corruption 5 | . . . . . . . . . . . . 5 . . . . . . Parts Lost 34 | . . 5 . . . . . 6 8 . . . . . . 6 9 . Power 4 | . . 1 . . . . . . 2 . . . . . . . 1 . Propulsion 18 | . . 2 . . . . . 5 3 . . . . . . 3 5 . Utility 8 | . . . . . . . . 1 2 . . . . . . 2 3 . Weapon 4 | . . 2 . . . . . . 1 . . . . . . 1 . . Highest Loss Streak 6 | . . 2 . . . . . 6 5 . . . . . . 4 6 . To Critical Strikes . | . . . . . . . . . . . . . . . . . . . Average Backups 12 | 1 7 14 14 14 7 13 13 13 11 13 13 13 13 11 11 11 9 2 Power . | . . . 2 1 . 1 1 . . 1 1 1 1 . . 1 1 . Propulsion 6 | . 5 10 9 8 2 5 6 6 5 5 5 4 4 3 2 . . . Utility 3 | . . . 2 4 3 6 6 6 5 7 7 6 5 5 4 3 2 . Weapon 1 | . 1 2 1 1 . . . . . . . 2 3 3 4 5 5 2 Tool/Special . | . . . . . . . . . . . . . . . . . . . Unused Backups 18 | . . 3 . 10 . . . . . . 1 . . . . . 4 . Power 1 | . . . . 1 . . . . . . . . . . . . . . Propulsion 7 | . . 2 . 5 . . . . . . . . . . . . . . Utility 6 | . . . . 3 . . . . . . 1 . . . . . 2 . Weapon 4 | . . 1 . 1 . . . . . . . . . . . . 2 . Tool/Special . | . . . . . . . . . . . . . . . . . . . Average Slot Usage (%) 91 | . 94 98 100 97 87 91 93 93 90 89 89 89 89 88 90 83 67 70 Engine 5 | . 14 12 14 10 . . . 1 2 . . . . . . . . . Core 3 | . . . . 3 10 13 13 8 3 5 5 5 5 4 4 . . . Reactor 2 | . . . . . . . . . 3 5 5 5 5 7 8 8 6 9 Treads 12 | . 28 27 28 26 . . . . . . . . . . . . . . Hover 8 | . . . . . 38 38 40 40 33 . . . . . . . 1 . Flight 8 | . . . . . . . . . 4 31 31 31 31 33 33 33 16 . Device 12 | . 8 14 14 2 12 13 13 16 17 21 21 21 21 19 17 17 11 . Storage 9 | . 14 14 14 14 6 6 6 5 5 5 5 5 5 4 4 4 6 9 Processor 2 | . . . . . 4 6 6 5 5 5 5 5 5 4 4 4 2 . Hackware 2 | . . . . . 5 6 6 5 7 5 5 5 5 4 7 4 2 . Protection 2 | . . . . 8 . . . . . . . . . . . 3 . . Energy Gun 2 | . 14 1 . . . . . . . . . . . . . . 3 34 Energy Cannon 5 | . . 9 14 14 . . . . . . . . . . . . 1 . Ballistic Gun 3 | . 14 15 . . . . . . . . . . . . . . . . Ballistic Cannon 3 | . . . 14 14 . . . . . . . . . . . . . . Impact Weapon 1 | . . . . . . . . . 1 5 5 5 5 4 4 4 2 . Slashing Weapon 2 | . . . . . 5 6 6 5 5 5 5 5 5 4 4 . . . Peak Build Rating 233 | 6 8 13 11 19 47 52 56 70 104 104 104 108 108 122 129 132 224 233 Average Rating 58 | 4 6 11 11 15 39 50 53 67 84 102 103 105 107 119 127 115 152 232 On Entrance 72 | . 6 8 11 11 17 47 52 56 70 104 101 104 108 108 122 129 129 200 Avg Prop Armor Cover (%) 2 | . . . . 4 5 . . . 4 2 2 2 2 2 2 . 3 . Naked Turns . | . . . . . . . . . . . . . . . . . . . Heaviest Build 69 | 10 26 37 35 43 39 39 42 45 47 46 46 46 45 63 65 65 65 69 Greatest Support 73 | 40 40 40 40 42 39 43 43 56 66 51 62 62 58 65 69 73 68 60 Greatest Overweight (x) 2 | . . . . 2 1 . . 1 . . . . . . . . 1 1 Average Overweight (x) . | . . . . . . . . . . . . . . . . . . . Largest Inventory Capacity 15 | 8 15 15 15 15 15 15 15 15 15 15 15 15 15 15 15 15 15 15 Average Capacity 14 | 7 10 15 15 15 15 15 15 15 15 15 15 15 15 15 15 15 14 15 Most Carried 15 | 4 12 15 15 15 15 15 15 15 15 15 15 15 15 14 14 15 15 7 Average Carried 13 | 1 7 14 14 14 8 14 14 14 13 14 14 14 14 13 12 12 11 3 Final Capacity 15 | 8 15 15 15 15 15 15 15 15 15 15 15 15 15 15 15 15 15 15 Final Carried 15 | 4 12 14 15 15 13 15 15 11 15 14 15 15 15 14 14 14 6 3 Class Distribution -------------------- 37% | Mutant 14% | Scavenger-Ninja 11% | Scavenger-Scout 7% | Derelict-Mutant 6% | Derelict-Scout 6% | Scavenger-Mutant 4% | Alien-Sigix 4% | Ninja Dominant Class ---------------- Mutant | -10/Materials Mutant | -10/Subcaves Mutant | -8/Recycling Mutant | -8/Scraptown Derelict-Scout | -6/Factory Derelict-Scout | -6/Waste Derelict-Scout | -6/Factory Ninja | -5/Factory Hacker-Mutant | -4/Factory Scavenger-Scout | -4/Upper Caves Scavenger-Ninja | -4/Upper Caves Scavenger-Ninja | -4/Warlord Scavenger-Assassin | -3/Proximity Caves Scavenger-Ninja | -3/Research Scavenger-Ninja | -2/Research Scavenger-Scout | -2/Quarantine Alien-Sigix | -2/Section 7 Alien-Sigix | -1/Access Resources | -11 -10 -10 -8 -8 -6 -6 -6 -5 -4 -4 -4 -4 -3 -3 -2 -2 -2 -1 ----------- Run | Yrd Mat Sub Rec Scr Fac Was Fac Fac Fac Upp Upp War Pro Res Res Qua Sec Acc Matter Collected 1545 | 72 237 236 . 50 87 . . . 360 95 49 40 . . . . 319 . Remotely . | . . . . . . . . . . . . . . . . . . . Salvage Created 1902 | . 268 527 . . 87 . . . 588 153 . . . . . . 242 37 Parts 99 | . 13 31 . . 7 . . . 31 . . . . . . . 13 4 Haulers Intercepted 1 | . 1 . . . . . . . . . . . . . . . . . Recyclers Shooed . | . . . . . . . . . . . . . . . . . . . Parts Field Recycled . | . . . . . . . . . . . . . . . . . . . Retrieved Matter . | . . . . . . . . . . . . . . . . . . . Parts Self-Destructed 7 | . . 7 . . . . . . . . . . . . . . . . Prevented 4 | . . . . . . . . . . . 3 . 1 . . . . . Parts Restored . | . . . . . . . . . . . . . . . . . . . Kills | -11 -10 -10 -8 -8 -6 -6 -6 -5 -4 -4 -4 -4 -3 -3 -2 -2 -2 -1 ------- Run | Yrd Mat Sub Rec Scr Fac Was Fac Fac Fac Upp Upp War Pro Res Res Qua Sec Acc Combat Hostiles Destroyed 29 | . 5 13 . . 1 . . . 8 . . . . . . . 2 . Melee 9 | . . . . . 1 . . . 8 . . . . . . . . . Guns 13 | . 5 6 . . . . . . . . . . . . . . 2 . Cannons 7 | . . 7 . . . . . . . . . . . . . . . . Classes Destroyed 11 | . 4 2 . . 2 . . . 2 . . . . . . . 1 . Hauler 1 | . 1 . . . . . . . . . . . . . . . . . Recycler 4 | . 2 . . . . . . . 2 . . . . . . . . . Operator 5 | . . . . . . . . . 2 . . . . . . . 2 1 Turret 2 | . . 2 . . . . . . . . . . . . . . . . Watcher 1 | . . . . . 1 . . . . . . . . . . . . . Swarmer 11 | . 3 4 . . . . . . 4 . . . . . . . . . Cutter 2 | . . . . . . . . . 2 . . . . . . . . . Grunt 2 | . 2 . . . . . . . . . . . . . . . . . Researcher 1 | . . . . . . . . . . . . . . . . . 1 . Programmer 4 | . . . . . 1 . . . 2 . . . . . . . 1 . Tracker 1 | . . . . . . . . . . . . . . . . . 1 . Subdweller 9 | . . 9 . . . . . . . . . . . . . . . . Best Kill Streak 6 | . 6 6 . . 1 . . . 5 . . . . . . . 1 1 Combat Bots Only 4 | . 3 4 . . 1 . . . 4 . . . . . . . 1 . Max Kills in Single Turn 2 | . 2 1 . . 1 . . . 1 . . . . . . . 1 1 Gunslinging . | . . . . . . . . . . . . . . . . . . . Exploded . | . . . . . . . . . . . . . . . . . . . Melee 1 | . . . . . 1 . . . 1 . . . . . . . . . Uniques/NPCs Destroyed . | . . . . . . . . . . . . . . . . . . . Combat | -11 -10 -10 -8 -8 -6 -6 -6 -5 -4 -4 -4 -4 -3 -3 -2 -2 -2 -1 -------- Run | Yrd Mat Sub Rec Scr Fac Was Fac Fac Fac Upp Upp War Pro Res Res Qua Sec Acc Hostile Shots Fired 701 | . 29 75 . . 5 . . 10 76 1 6 4 . 6 . 24 363 102 Missed 236 | . 6 13 . . 4 . . 4 32 . 4 2 . 6 . 15 112 38 Hits 465 | . 23 62 . . 1 . . 6 44 1 2 2 . . . 9 251 64 Melee 3 | . . . . . . . . . 3 . . . . . . . . . Projectile 462 | . 23 62 . . 1 . . 6 41 1 2 2 . . . 9 251 64 AOE 1 | . . . . . . . . . 1 . . . . . . . . . Critical Strikes 25 | . 2 1 . . . . . . 3 . . . . . . . 18 1 Damage Taken 7385 | . 337 968 . . 16 . . 268 705 14 43 46 . . . 584 3422 982 Core 2066 | . 56 155 . . . . . 22 90 . . 19 . . . 99 1139 486 Absorbed by Shields . | . . . . . . . . . . . . . . . . . . . Ignored by Resistances 3204 | . . . . . . . . . . . . . . . . . 2458 746 Regen/Repaired (Parts) 86 | . . . . . . . 22 . . . . 64 . . . . . . Core Remaining (%) 73 | 100 . . . 15 . . 100 97 . . . . 90 100 . . 14 69 Volleys Fired 112 | . 23 50 . . . . . . . . . . . . . . 30 9 Largest 4 | . 2 2 . . . . . . . . . . . . . . 2 4 Hottest 400 | . 60 113 . . . . . . . . . . . . . . 200 400 Shots Fired 202 | . 46 85 . . . . . . . . . . . . . . 49 22 Gun 149 | . 46 50 . . . . . . . . . . . . . . 31 22 Cannon 43 | . . 35 . . . . . . . . . . . . . . 8 . Launcher 10 | . . . . . . . . . . . . . . . . . 10 . Special . | . . . . . . . . . . . . . . . . . . . Kinetic 68 | . 23 45 . . . . . . . . . . . . . . . . Thermal 63 | . 23 40 . . . . . . . . . . . . . . . . Explosive 10 | . . . . . . . . . . . . . . . . . 10 . Electromagnetic . | . . . . . . . . . . . . . . . . . . . Slashing 53 | . . . . . . . . . . . . . . . . . 31 22 Entropic 8 | . . . . . . . . . . . . . . . . . 8 . Robot Hit Streak 34 | . 14 34 . . . . . . . . . . . . . . 4 4 Robot Miss Streak 6 | . 3 2 . . . . . . . . . . . . . . 6 3 Penetration Max 1 | . . . . . . . . . . . . . . . . . 1 1 Secondary Targets . | . . . . . . . . . . . . . . . . . . . Shots Hit Robots 152 | . 36 62 . . 4 . 6 . 18 3 . . . . . . 18 5 Core Hits 63 | . 15 22 . . 2 . . . 10 . . . . . . . 13 1 Critical Kills 2 | . . 2 . . . . . . . . . . . . . . . . Critical Parts Destroyed 2 | . . 1 . . . . . . . 1 . . . . . . . . Critical Strikes 9 | . . 4 . . 1 . . . 2 1 . . . . . . 1 . Meltdown 1 | . . 1 . . . . . . . . . . . . . . . . Destroy 3 | . . 3 . . . . . . . . . . . . . . . . Smash 1 | . . . . . . . . . . 1 . . . . . . . . Sever 3 | . . . . . 1 . . . 2 . . . . . . . . . Impale 1 | . . . . . . . . . . . . . . . . . 1 . Melee Attacks 134 | . . . . . 16 . 14 12 36 9 . . . 2 10 14 21 . Kinetic 4 | . . . . . . . . . . . . . . . . . 4 . Impact 41 | . . . . . . . . . 3 9 . . . 2 10 14 3 . Slashing 75 | . . . . . 16 . 14 12 33 . . . . . . . . . Piercing 14 | . . . . . . . . . . . . . . . . . 14 . Sneak Attacks 7 | . . . . . . . 1 . 5 . . . . . . . 1 . Combat Hostiles . | . . . . . . . . . . . . . . . . . . . Follow-up Attacks 2 | . . . . . . . . . . . . . . . . . 2 . Damage Inflicted 5433 | . 495 1046 . . 174 . 267 . 959 275 . . . . . . 1748 469 Guns 2309 | . 334 484 . . . . . . . . . . . . . . 1022 469 Cannons 562 | . . 562 . . . . . . . . . . . . . . . . Explosions 538 | . 161 . . . . . . . . . . . . . . . 377 . Melee 2024 | . . . . . 174 . 267 . 959 275 . . . . . . 349 . Ramming . | . . . . . . . . . . . . . . . . . . . Kinetic 638 | . 149 396 . . . . . . . . . . . . . . 93 . Thermal 996 | . 346 650 . . . . . . . . . . . . . . . . Explosive 377 | . . . . . . . . . . . . . . . . . 377 . Electromagnetic . | . . . . . . . . . . . . . . . . . . . Impact 537 | . . . . . . . . . 173 275 . . . . . . 89 . Slashing 2718 | . . . . . 174 . 267 . 786 . . . . . . . 1022 469 Piercing 167 | . . . . . . . . . . . . . . . . . 167 . Highest Corruption 15 | . . . . . . 8 8 1 2 2 . 5 . . . 13 15 . Average Corruption 5 | . . . . . . 8 8 1 1 1 . 5 . . . 12 7 . Corruption Purged 2 | . . . . . . . . . . 2 . . . . . . . . Corruption Blocked . | . . . . . . . . . . . . . . . . . . . Effects 40 | . . . . . . 1 8 . 3 4 . . . . . 5 19 . Message Errors 7 | . . . . . . . 2 . 1 1 . . . . . 2 1 . Matter Fused 8 | . . . . . . . 2 . 1 1 . . . . . . 4 . Heat Flow Errors 4 | . . . . . . . 2 . . 1 . . . . . . 1 . Energy Discharges 8 | . . . . . . 1 1 . . . . . . . . 2 4 . Parts Rejected 1 | . . . . . . . . . . . . . . . . . 1 . Parts Fused 1 | . . . . . . . . . . . . . . . . 1 . . Data Loss (minor) 3 | . . . . . . . . . . 1 . . . . . . 2 . Data Loss (major) 1 | . . . . . . . . . . . . . . . . . 1 . Misfires 1 | . . . . . . . . . . . . . . . . . 1 . Alerts 2 | . . . . . . . 1 . 1 . . . . . . . . . Misdirections 3 | . . . . . . . . . . . . . . . . . 3 . Weapon Failures 1 | . . . . . . . . . . . . . . . . . 1 . Overload Shots . | . . . . . . . . . . . . . . . . . . . Overflow Damage 666 | . 61 . . . . . 21 . 172 238 . . . . . . 174 . Projectiles . | . . . . . . . . . . . . . . . . . . . Explosions 82 | . 61 . . . . . . . . . . . . . . . 21 . Melee 584 | . . . . . . . 21 . 172 238 . . . . . . 153 . Knockbacks 3 | . . . . . . . . . 1 1 . . . . . . 1 . Impact 3 | . . . . . . . . . 1 1 . . . . . . 1 . Kinetic . | . . . . . . . . . . . . . . . . . . . Secondary . | . . . . . . . . . . . . . . . . . . . Self-Inflicted Damage 83 | . 61 . . . . . . . . . . . . . . . 22 . Shots 2 | . 1 . . . . . . . . . . . . . . . 1 . Rammed . | . . . . . . . . . . . . . . . . . . . Targets Rammed . | . . . . . . . . . . . . . . . . . . . Kicked . | . . . . . . . . . . . . . . . . . . . Crushed . | . . . . . . . . . . . . . . . . . . . Highest Temperature 311 | . 76 22 . . 2 117 311 240 5 179 25 86 . 141 100 99 259 176 Average Temperature 53 | . 28 9 . . 2 63 65 74 3 92 8 21 . 58 19 43 58 106 Received Heat Transfer 522 | . 144 213 . . . . . . . . 12 9 . . . 18 45 81 Effects 1 | . . . . . . . . 1 . . . . . . . . . . Energy Bleed 1 | . . . . . . . . 1 . . . . . . . . . . Siege Activations . | . . . . . . . . . . . . . . . . . . . Martial Activations . | . . . . . . . . . . . . . . . . . . . Shielding Activations . | . . . . . . . . . . . . . . . . . . . Robots Disrupted . | . . . . . . . . . . . . . . . . . . . Combat Hostiles . | . . . . . . . . . . . . . . . . . . . Robots Corrupted 5 | . . . . . . . . . 1 2 . . . . . . 2 . Combat Hostiles 2 | . . . . . . . . . . 2 . . . . . . . . Parts Fried 4 | . . . . . . . . . 2 . . . . . . . 2 . Impact Corruptions 15 | . . . . . . . . . 2 10 . . . . . . 3 . Robots Melted 1 | . . 1 . . . . . . . . . . . . . . . . Combat Hostiles . | . . . . . . . . . . . . . . . . . . . Parts Melted 3 | . 1 2 . . . . . . . . . . . . . . . . Heat Transferred 1503 | . 525 978 . . . . . . . . . . . . . . . . Parts Sabotaged . | . . . . . . . . . . . . . . . . . . . Parts Stolen . | . . . . . . . . . . . . . . . . . . . Parts Stripped . | . . . . . . . . . . . . . . . . . . . Power Chain Reactions . | . . . . . . . . . . . . . . . . . . . Alert | -11 -10 -10 -8 -8 -6 -6 -6 -5 -4 -4 -4 -4 -3 -3 -2 -2 -2 -1 ------- Run | Yrd Mat Sub Rec Scr Fac Was Fac Fac Fac Upp Upp War Pro Res Res Qua Sec Acc Maximum Alert Level 5 | . . . . . . . . . . . . . . . . . 5 5 Low Security (%) 90 | 100 100 . 100 . 100 100 100 100 100 . . . . 100 100 100 68 . Level 1 . | . . . . . . . . . . . . . . . . . . . Level 2 . | . . . . . . . . . . . . . . . . . . . Level 3 . | . . . . . . . . . . . . . . . . . . 13 Level 4 . | . . . . . . . . . . . . . . . . . . 9 Level 5 . | . . . . . . . . . . . . . . . . . . . High Security . | . . . . . . . . . . . . . . . . . . . Max Security 8 | . . . . . . . . . . . . . . . . . 31 77 Peak Influence 1941 | . 177 . 60 . 46 8 34 60 135 . . . . 4 51 62 1763 1941 Initial 1100 | . . . 60 . . 8 . . 24 . . . . . . 22 23 1100 Average 188 | . 68 . 13 . 8 3 7 4 57 . . . . . 13 13 597 1598 Influence Increases 2352 | . 234 165 . . 123 . 47 98 343 85 60 . . 4 90 120 642 341 Destroy 0b10 Robot/C 460 | . 100 120 . . 20 . . . 160 . . . . . . . 60 . Destroy 0b10 Robot/NC 65 | . 15 . . . 5 . . . 20 10 . . . . . . 10 5 Destroy Leader 74 | . 22 . . . 12 . . . 30 . . . . . . . 10 . Successful Hack 148 | . . . . . . . 14 14 8 . . . . . 48 . 64 . Disable Machine 210 | . 45 . . . 15 . . . . . . . . . . 15 120 15 Destroy Structure 285 | . 22 . . . 11 . 3 24 20 . . . . 4 27 30 78 66 Partial Spotted 60 | . . . . . . . . . 15 . . . . . 15 15 15 . Lose Combat Pursuer 1050 | . 30 45 . . 60 . 30 60 90 75 60 . . . . 60 285 255 Influence Decreases 2434 | . 138 136 125 . 99 24 47 48 291 187 30 30 . 4 50 118 381 726 Entered New Map 966 | . . 47 65 . . 16 . . 26 39 . 30 . . . 18 19 706 Time Decay 1111 | . 138 59 60 . 99 8 47 48 215 148 30 . . 4 50 49 136 20 Lost Part 217 | . . 30 . . . . . . 50 . . . . . . 51 86 . Purge Threat 140 | . . . . . . . . . . . . . . . . . 140 . Squads Dispatched 41 | . . . . . 3 . 1 2 4 . . . . . 1 2 15 13 Investigation 3 | . . . . . 2 . . . . . . . . . . 1 . . Extermination 4 | . . . . . 1 . . . 1 . . . . . 1 . 1 . Reinforcement 9 | . . . . . . . 1 2 3 . . . . . . 1 1 1 Assault 24 | . . . . . . . . . . . . . . . . . 12 12 Garrison . | . . . . . . . . . . . . . . . . . . . Intercept 1 | . . . . . . . . . . . . . . . . . 1 . Searches Triggered . | . . . . . . . . . . . . . . . . . . . Construction Impeded 1 | . . . . . . . . . 1 . . . . . . . . . Haulers Reinforced 1 | . . . . . . . 1 . . . . . . . . . . . Active Scanning Responses . | . . . . . . . . . . . . . . . . . . . Cargo Convoy Interrupts . | . . . . . . . . . . . . . . . . . . . Stealth | -11 -10 -10 -8 -8 -6 -6 -6 -5 -4 -4 -4 -4 -3 -3 -2 -2 -2 -1 --------- Run | Yrd Mat Sub Rec Scr Fac Was Fac Fac Fac Upp Upp War Pro Res Res Qua Sec Acc Distress Signals 8 | . . . . . . . . 1 . . . 1 . . . 1 2 3 Communications Jammed . | . . . . . . . . . . . . . . . . . . . Distress Signals . | . . . . . . . . . . . . . . . . . . . Times Spotted 144 | . 7 16 . . 4 6 2 8 17 3 5 4 . 2 . 10 37 23 Peak Tracking Total 14 | . 3 6 . . 3 6 2 8 7 5 4 4 . 2 . 8 14 8 Tactical Retreats 26 | . 2 2 . . 2 . 1 1 4 1 1 . . . . 1 6 5 Traps | -11 -10 -10 -8 -8 -6 -6 -6 -5 -4 -4 -4 -4 -3 -3 -2 -2 -2 -1 ------- Run | Yrd Mat Sub Rec Scr Fac Was Fac Fac Fac Upp Upp War Pro Res Res Qua Sec Acc Traps Triggered 3 | . . . . . 1 . . 1 . . . . . . . . 1 . Indirectly . | . . . . . . . . . . . . . . . . . . . Trap Hack Attempts . | . . . . . . . . . . . . . . . . . . . Triggered . | . . . . . . . . . . . . . . . . . . . Disarmed . | . . . . . . . . . . . . . . . . . . . Reprogrammed . | . . . . . . . . . . . . . . . . . . . Reused . | . . . . . . . . . . . . . . . . . . . Traps Extracted . | . . . . . . . . . . . . . . . . . . . Installed . | . . . . . . . . . . . . . . . . . . . Triggered . | . . . . . . . . . . . . . . . . . . . Machines | -11 -10 -10 -8 -8 -6 -6 -6 -5 -4 -4 -4 -4 -3 -3 -2 -2 -2 -1 ---------- Run | Yrd Mat Sub Rec Scr Fac Was Fac Fac Fac Upp Upp War Pro Res Res Qua Sec Acc Machines Disabled 15 | . 3 1 . . 1 . . . . . . . . . . 1 8 1 Max in Single Turn 3 | . 3 1 . . 1 . . . . . . . . . . 1 1 1 Machines Repaired . | . . . . . . . . . . . . . . . . . . . Machines Dismantled . | . . . . . . . . . . . . . . . . . . . Machines Sabotaged . | . . . . . . . . . . . . . . . . . . . Overloaded Fab Kills . | . . . . . . . . . . . . . . . . . . . Hacking | -11 -10 -10 -8 -8 -6 -6 -6 -5 -4 -4 -4 -4 -3 -3 -2 -2 -2 -1 --------- Run | Yrd Mat Sub Rec Scr Fac Was Fac Fac Fac Upp Upp War Pro Res Res Qua Sec Acc Machines Accessed 62 | . 1 . 4 . 7 . 5 3 8 1 . 10 . 3 3 4 12 1 Terminals 34 | . . . 2 . 3 . 2 2 3 1 . . . 2 3 4 11 1 Fabricators . | . . . . . . . . . . . . . . . . . . . Repair Stations 1 | . . . . . . . 1 . . . . . . . . . . . Recycling Units 10 | . 1 . 2 . 4 . 1 . 2 . . . . . . . . . Scanalyzers 5 | . . . . . . . 1 . 2 . . . . 1 . . 1 . Garrison Access 2 | . . . . . . . . 1 1 . . . . . . . . . Total Hacks 127 | . 2 . 9 . 13 . 19 9 18 1 . 19 . 3 6 9 18 1 Successful 54 | . 1 . 3 . 7 . 5 2 7 1 . 19 . . 2 . 7 . Failed 73 | . 1 . 6 . 6 . 14 7 11 . . . . 3 4 9 11 1 Catastrophic 23 | . . . . . 2 . 4 2 4 . . . . 1 2 2 6 . Database Lockouts . | . . . . . . . . . . . . . . . . . . . Manual 34 | . . . 2 . 8 . 2 6 8 . . . . 1 1 2 3 1 Terminals 67 | . . . 5 . 6 . 6 6 8 1 . . . 2 6 9 17 1 Fabricators . | . . . . . . . . . . . . . . . . . . . Repair Stations 6 | . . . . . . . 6 . . . . . . . . . . . Recycling Units 19 | . 2 . 4 . 7 . 3 . 3 . . . . . . . . . Scanalyzers 11 | . . . . . . . 4 . 5 . . . . 1 . . 1 . Garrison Access 5 | . . . . . . . . 3 2 . . . . . . . . . Terminal Hacks 34 | . . . 1 . 2 . . 1 1 1 . 19 . . 2 . 7 . Record 20 | . . . . . 1 . . . . 1 . 18 . . . . . . Robot Analysis 1 | . . . . . 1 . . . . . . . . . . . . . Open Door 2 | . . . . . . . . . . . . 1 . . . . 1 . Level Access Points 3 | . . . . . . . . 1 1 . . . . . 1 . . . Branch Access Points 1 | . . . . . . . . . . . . . . . 1 . . . Unreport Threat 2 | . . . . . . . . . . . . . . . . . 2 . Hauler Manifests 1 | . . . 1 . . . . . . . . . . . . . . . Registered Prototypes 1 | . . . . . . . . . . . . . . . . . 1 . Zone Layout 2 | . . . . . . . . . . . . . . . . . 2 . Activate Exoskeleton 1 | . . . . . . . . . . . . . . . . . 1 . Fabricator Hacks . | . . . . . . . . . . . . . . . . . . . Repair Station Hacks 2 | . . . . . . . 2 . . . . . . . . . . . Scan Component 1 | . . . . . . . 1 . . . . . . . . . . . Repair 1 | . . . . . . . 1 . . . . . . . . . . . Recycling Unit Hacks 7 | . 1 . 2 . 2 . 1 . 1 . . . . . . . . . Retrieve Components 7 | . 1 . 2 . 2 . 1 . 1 . . . . . . . . . Scanalyzer 5 | . . . . . . . 1 . 4 . . . . . . . . . Retrieve Study 5 | . . . . . . . 1 . 4 . . . . . . . . . Garrison Access Hacks . | . . . . . . . . . . . . . . . . . . . Unauthorized Hacks 6 | . . . . . 3 . 1 1 1 . . . . . . . . . Terminals 4 | . . . . . 1 . 1 1 1 . . . . . . . . . Botnet 4 | . . . . . 1 . 1 1 1 . . . . . . . . . Fabricators . | . . . . . . . . . . . . . . . . . . . Repair Stations . | . . . . . . . . . . . . . . . . . . . Recycling Units 2 | . . . . . 2 . . . . . . . . . . . . . Fedlink 2 | . . . . . 2 . . . . . . . . . . . . . Scanalyzers . | . . . . . . . . . . . . . . . . . . . Garrison Access . | . . . . . . . . . . . . . . . . . . . Data Cores Recovered 4 | . . . . . . . . . 2 . . . . . . . 2 . Used 2 | . . . . . . . . . 1 . . . . . . . 1 . Hacking Detections 43 | . 1 . 4 . 4 . 4 3 7 . . . . 3 3 4 9 1 Full Trace Events 1 | . . . . . . . . . . . . . . . . 1 . . Feedback Events 1 | . . . . . . . . . . . . . . . . 1 . . Corruption 1 | . . . . . . . . . . . . . . . . 1 . . Feedback Blocked . | . . . . . . . . . . . . . . . . . . . Robot Schematics Acquired 1 | . . . . . . . . . . . . . . . . . 1 . Robots Built . | . . . . . . . . . . . . . . . . . . . Authchips . | . . . . . . . . . . . . . . . . . . . Time . | . . . . . . . . . . . . . . . . . . . Total Robot Build Rating . | . . . . . . . . . . . . . . . . . . . Part Schematics Acquired 4 | . . . . . . . . . . . . . . . . . 4 . Parts Built . | . . . . . . . . . . . . . . . . . . . Authchips . | . . . . . . . . . . . . . . . . . . . Time . | . . . . . . . . . . . . . . . . . . . Total Part Build Rating . | . . . . . . . . . . . . . . . . . . . Part Studies Acquired 4 | . . . . . . . . . 4 . . . . . . . . . Parts Repaired 1 | . . . . . . . 1 . . . . . . . . . . . Time 43 | . . . . . . . 43 . . . . . . . . . . . Parts Recycled . | . . . . . . . . . . . . . . . . . . . Recycled Matter . | . . . . . . . . . . . . . . . . . . . Retrieved Matter . | . . . . . . . . . . . . . . . . . . . Retrieved Components 11 | . . . 3 . 3 . 2 . 3 . . . . . . . . . Parts Scanalyzed . | . . . . . . . . . . . . . . . . . . . Part Schematics Acquired . | . . . . . . . . . . . . . . . . . . . Parts Damaged . | . . . . . . . . . . . . . . . . . . . Bothacking | -11 -10 -10 -8 -8 -6 -6 -6 -5 -4 -4 -4 -4 -3 -3 -2 -2 -2 -1 ------------ Run | Yrd Mat Sub Rec Scr Fac Was Fac Fac Fac Upp Upp War Pro Res Res Qua Sec Acc Used RIF Installer . | . . . . . . . . . . . . . . . . . . . Robots Hacked . | . . . . . . . . . . . . . . . . . . . Non-combat . | . . . . . . . . . . . . . . . . . . . Combat . | . . . . . . . . . . . . . . . . . . . Robot Hacks Applied . | . . . . . . . . . . . . . . . . . . . Relay Couplers Released . | . . . . . . . . . . . . . . . . . . . Fabnet Peak Effective % . | . . . . . . . . . . . . . . . . . . . Robots Rewired 1 | . . . . . . . . . . 1 . . . . . . . . Allies Hacked . | . . . . . . . . . . . . . . . . . . . Hacks Repelled . | . . . . . . . . . . . . . . . . . . . Allies | -11 -10 -10 -8 -8 -6 -6 -6 -5 -4 -4 -4 -4 -3 -3 -2 -2 -2 -1 -------- Run | Yrd Mat Sub Rec Scr Fac Was Fac Fac Fac Upp Upp War Pro Res Res Qua Sec Acc Total Allies 10 | . . . . . . 1 . . . 1 . . . . . . . 8 Largest Group 6 | . . . . . . 1 . . . 1 . . . . . . . 6 Highest-Rated Group 85 | . . . . . . 31 . . . 40 . . . . . . . 85 Highest-Rated Ally 40 | . . . . . . 31 . . . 40 . . . . . . . 15 Initial UFD Resources 51 | . . . . . 22 36 36 40 43 43 43 43 47 47 49 49 49 51 Total Orders 1 | . . . . . . . . . . 1 . . . . . . . . ROAM 1 | . . . . . . . . . . 1 . . . . . . . . Ally Attacks 5 | . . . . . . 2 . . . 3 . . . . . . . . Total Damage 63 | . . . . . . . . . . 63 . . . . . . . . Kills . | . . . . . . . . . . . . . . . . . . . Allies Corrupted . | . . . . . . . . . . . . . . . . . . . Allies Melted . | . . . . . . . . . . . . . . . . . . . Intel | -11 -10 -10 -8 -8 -6 -6 -6 -5 -4 -4 -4 -4 -3 -3 -2 -2 -2 -1 ------- Run | Yrd Mat Sub Rec Scr Fac Was Fac Fac Fac Upp Upp War Pro Res Res Qua Sec Acc Active Infowar (turns) 3785 | . . . . . 416 39 262 353 577 840 92 435 55 80 154 207 275 . Sensors 3688 | . . . . . 344 39 262 353 552 840 92 435 55 80 154 207 275 . Terrain 692 | . . . . . . . . . . 524 7 . . . . . 161 . Traps 3097 | . . . . . 413 39 262 313 73 840 92 435 55 80 154 207 134 . Cloaking 2028 | . . . . . 27 . . 352 553 267 85 435 55 80 154 20 . . Robot Analysis Total 1 | . . . . . 1 . . . . . . . . . . . . . Derelict Logs Recovered 9 | . . 1 . 5 . . . . . 1 2 . . . . . . . Drone Launches . | . . . . . . . . . . . . . . . . . . . Drone Recoveries . | . . . . . . . . . . . . . . . . . . . Exploration | -11 -10 -10 -8 -8 -6 -6 -6 -5 -4 -4 -4 -4 -3 -3 -2 -2 -2 -1 ------------- Run | Yrd Mat Sub Rec Scr Fac Was Fac Fac Fac Upp Upp War Pro Res Res Qua Sec Acc Turns Passed 7968 | 74 404 1225 301 1797 431 39 262 353 592 840 92 435 55 80 154 207 417 210 Spaces Moved 8597 | 41 188 651 175 1015 551 91 324 530 894 695 318 811 189 282 391 442 799 210 Core 3 | 3 . . . . . . . . . . . . . . . . . . Treads 1965 | 38 188 651 175 913 . . . . . . . . . . . . . . Legs 372 | . . . . . . . . . . . . . . . . . 179 193 Wheels 107 | . . . . 102 5 . . . . . . . . . . . . . Hover 2166 | . . . . . 546 91 324 530 675 . . . . . . . . . Flight 3951 | . . . . . . . . . 219 695 318 811 189 282 391 442 604 . Fastest Speed 8 | 50 160 160 160 92 40 36 36 33 22 24 14 14 21 19 16 8 15 30 Average Speed 62 | 151 160 160 160 172 41 36 36 34 33 24 23 23 22 19 18 15 29 88 Slowest Speed 245 | 160 160 160 160 245 92 40 36 104 44 24 25 24 24 22 19 19 107 90 Overloaded Moves 48 | . . . . . . . . . . . 4 14 . . . 30 . . Propulsion Burnouts . | . . . . . . . . . . . . . . . . . . . Robots Hopped 9 | . . . . . . . . . . . . . . . . 8 1 . Potential Cave-ins 9 | . . . . . . . . . . . . . . . . . 9 . Cave-ins Triggered 2 | . . . . . . . . . . . . . . . . 1 1 . Spacefolds 13 | . . . . . . . . . . . . . . . . . 7 6 Exploration Rate (%) 39 | 4 30 47 35 75 11 76 9 15 21 77 56 89 44 8 12 56 66 10 Regions Visited 18 Branch Regions 9 Pre-discovered Areas 1 | . . . . . 1 . . . . . . . . . . . . . Known Exits Taken 11 | . . . . . . . 1 1 1 1 1 1 1 1 1 1 1 . Unknown Exits Taken 5 | 1 1 1 1 1 . . . . . . . . . . . . . . Scrap Searched 20 | . . 5 . 11 . . . . . 1 2 . 1 . . . . . Spaces Dug 83 | . . 1 . . 11 . 3 12 10 5 . . . 2 9 10 4 16 Terrain Destroyed 215 | . 24 3 . . 11 . 3 12 10 5 . . . 2 9 10 98 28 Melee 66 | . . . . . 11 . 3 12 10 5 . . . 2 9 10 4 . Projectile 31 | . . 3 . . . . . . . . . . . . . . . 28 AOE 118 | . 24 . . . . . . . . . . . . . . . 94 . Terrain Rammed . | . . . . . . . . . . . . . . . . . . . Walls Destroyed . | . . . . . . . . . . . . . . . . . . . Machines Disabled . | . . . . . . . . . . . . . . . . . . . Actions | -11 -10 -10 -8 -8 -6 -6 -6 -5 -4 -4 -4 -4 -3 -3 -2 -2 -2 -1 --------- Run | Yrd Mat Sub Rec Scr Fac Was Fac Fac Fac Upp Upp War Pro Res Res Qua Sec Acc Total 10742 | 50 251 757 196 1064 728 95 445 679 1123 1350 333 1055 201 301 454 548 891 221 Wait 1624 | . 23 23 21 15 123 1 101 121 134 639 12 235 10 15 46 89 7 9 Move 8541 | 40 187 650 174 1014 551 90 323 529 893 694 317 810 188 281 390 426 786 198 Hop 8 | . . . . . . . . . . . . . . . . 7 1 . Pick Up 97 | 4 9 14 1 11 12 1 2 5 18 . 2 2 1 1 3 3 8 . Fast Attach 33 | 6 1 1 . 1 1 1 . 1 10 . . . . . . 2 9 . Attach 64 | . . 7 . . 14 . . 7 13 . . 1 . 2 3 4 9 4 Detach 16 | . . . . 1 3 1 . . 1 . . . . . 1 . 8 1 Swap 33 | . 4 3 . 6 1 1 2 2 3 3 1 3 . . . 1 3 . Drop 76 | . 4 9 . 16 7 . 3 2 15 . 1 4 2 . 1 2 10 . Fire 112 | . 23 50 . . . . . . . . . . . . . . 30 9 Melee 131 | . . . . . 16 . 14 12 36 9 . . . 2 10 14 18 . Ram . | . . . . . . . . . . . . . . . . . . . Kick . | . . . . . . . . . . . . . . . . . . . Crush . | . . . . . . . . . . . . . . . . . . . Escape Stasis 1 | . . . . . . . . . . . . . . . . . 1 . Rewire 6 | . . . . . . . . . . 5 . . . . . . 1 . Trap . | . . . . . . . . . . . . . . . . . . . Miscellaneous . | . . . . . . . . . . . . . . . . . . . Route ------- -11/Scrapyard -10/Materials (discovered 2 exits: [*Mat] / [*Sub]) -10/Subcaves (discovered 2 exits: [*Mat] / *Rec) -8/Recycling (discovered 2 exits: *Fac / [*Scr]) -8/Scraptown (discovered 2 exits: *Fac x2) -6/Factory (discovered 2 exits: *Low / Ext) -6/Waste -6/Factory -5/Factory (discovered 4 exits: *Fac x4) -4/Factory (discovered 5 exits: Res x4 / *Upp) -4/Upper Caves -4/Upper Caves -4/Warlord -3/Proximity Caves -3/Research (discovered 4 exits: *Res x2 / Tes x2) -2/Research (discovered 5 exits: *Acc x3 / *Qua x2) -2/Quarantine (discovered 3 exits: *Acc / *Sec / *Frg) -2/Section 7 -1/Access To Fleet Rendezvous History --------- Turn | Location | Event 9 | -11/Scrapyard | Discovered new exit (range 16) 75 | -11/Scrapyard | Entered Materials 317 | -10/Materials | Build established: Mutant 394 | -10/Materials | Discovered new exit (range 10) 465 | -10/Materials | Discovered new exit (range 8) 479 | -10/Materials | Entered Subcaves 504 | -10/Subcaves | Learned Materials terminal intel 522 | -10/Subcaves | Discovered new exit (range 15) 538 | -10/Subcaves | Shifting Twisted Machinery released Sub. Beam Cannon 538 | -10/Subcaves | Shifting Twisted Machinery released Sub. Beam Cannon 547 | -10/Subcaves | Shifting Twisted Machinery released Flamer 584 | -10/Subcaves | Shifting Twisted Machinery released Sub. Laser 646 | -10/Subcaves | A swath of the cavern ceiling suddenly collapsed 1207 | -10/Subcaves | Core integrity fell below 50% 1496 | -10/Subcaves | Build established: Scavenger-Mutant 1669 | -10/Subcaves | Core integrity fell below 20% 1684 | -10/Subcaves | Discovered new exit (range 10) 1704 | -10/Subcaves | Entered Recycling 1934 | -8/Recycling | Discovered new exit (range 5) 1949 | -8/Recycling | Build established: Mutant 1962 | -8/Recycling | Scanned before Scraplab entrance 1989 | -8/Recycling | Entered Scraplab 2002 | -8/Recycling | Discovered new exit (range 3) 2005 | -8/Recycling | Entered Scraptown 2218 | -8/Scraptown | Visited Symbiants 2242 | -8/Scraptown | Visited Comm Corps 2256 | -8/Scraptown | Visited Spacefarers 2424 | -8/Scraptown | Heard Great Nut preacher, LISTEN AND RECITE! 2522 | -8/Scraptown | Scanned Subdweller tech in exchange for log data 2527 | -8/Scraptown | Learned Research terminal intel 2532 | -8/Scraptown | Learned location of 1 exit from Research 2537 | -8/Scraptown | Learned Research trap positions 2540 | -8/Scraptown | Learned Research security intel 2567 | -8/Scraptown | Discovered new exit (range 13) 2755 | -8/Scraptown | Visited Bundlers 2924 | -8/Scraptown | Visited Fellowship of the Rings 2949 | -8/Scraptown | Visited UFD Registry 2949 | -8/Scraptown | Registered with UFD as "Flexiform" 3053 | -8/Scraptown | Guru changed UFD alias to "Electrosourcer" 3192 | -8/Scraptown | Visited LU-1G1's Boring Crew 3217 | -8/Scraptown | Visited Observation Area 3272 | -8/Scraptown | Visited Science Guys 3302 | -8/Scraptown | Visited DA-N13 Charitable Foundation 3316 | -8/Scraptown | Found DCF Scrap (27 items) 3372 | -8/Scraptown | Visited Scrap Suit Storage 3402 | -8/Scraptown | Visited Supply Room 3443 | -8/Scraptown | Visited Derelict Rescue Squad 3457 | -8/Scraptown | Found DRS Beacon 3488 | -8/Scraptown | Visited Scrapoid Pod Storage 3513 | -8/Scraptown | Visited Infowarlord's Domain 3523 | -8/Scraptown | Found Exp. Sensor Array 3555 | -8/Scraptown | Visited Modified Component R&D 3619 | -8/Scraptown | Build established: Derelict-Mutant 3741 | -8/Scraptown | Met Optimus 3741 | -8/Scraptown | Accepted into 0bPrime 3799 | -8/Scraptown | Discovered new exit (range 5) 3802 | -8/Scraptown | Entered Factory 3802 | -6/Factory | Evolved 8 slots: Power x1, Propulsion x4, Utility x3 3803 | -6/Factory | Identified exit to Extension 3897 | -6/Factory | Loaded intel: 8 recycling unit locations 3931 | -6/Factory | Learned location of Protoforge (-2) 3935 | -6/Factory | Discovered new exit (range 11) 3971 | -6/Factory | Identified exit to Lower Caves 4191 | -6/Factory | Build established: Derelict-Scout 4233 | -6/Factory | Sucked down chute 4233 | -6/Factory | Entered Waste 4234 | -6/Waste | Met a frightened Derelict 4243 | -6/Waste | Spotted C-40 Crusher 4246 | -6/Waste | Spotted C-40 Crusher 4248 | -6/Waste | EMP discharged 4250 | -6/Waste | Spotted C-40 Crusher 4251 | -6/Waste | Spotted C-40 Crusher 4252 | -6/Waste | Spotted C-40 Crusher 4260 | -6/Waste | Spotted C-40 Crusher 4268 | -6/Waste | Discovered new exit (range 10) 4271 | -6/Waste | Identified exit to Factory 4272 | -6/Waste | Entered Factory 4497 | -6/Factory | Repaired Broken Imp. Cloaking Device 4518 | -6/Factory | Discovered new exit (range 15) 4533 | -6/Factory | Identified exit to Factory 4534 | -6/Factory | Entered another Factory area 4534 | -5/Factory | Evolved 2 slots: Propulsion x1, Utility x1 4836 | -5/Factory | Build established: Ninja 4863 | -5/Factory | Identified exit to Factory 4878 | -5/Factory | Lost 6 parts (5n1u) 4887 | -5/Factory | Entered another Factory area 4887 | -4/Factory | Evolved 2 slots: Propulsion x1, Utility x1 5202 | -4/Factory | Lost 5 parts (1p3n1u) 5425 | -4/Factory | Identified exit to Research 5464 | -4/Factory | Spotted B-86 Titan 5467 | -4/Factory | Discovered new exit (range 5) 5471 | -4/Factory | Identified exit to Upper Caves 5479 | -4/Factory | Entered Upper Caves 5518 | -4/Upper Caves | Learned location of 2 exits from Research 5645 | -4/Upper Caves | Build established: Scavenger-Ninja 6051 | -4/Upper Caves | Build established: Scavenger-Scout 6306 | -4/Upper Caves | Discovered new exit (range 4) 6319 | -4/Upper Caves | Identified exit to Upper Caves 6319 | -4/Upper Caves | Entered another Upper Caves area 6398 | -4/Upper Caves | Learned location of 1 exit from Research 6399 | -4/Upper Caves | Learned Research interactive machine intel 6408 | -4/Upper Caves | Discovered new exit (range 10) 6411 | -4/Upper Caves | Identified exit to Warlord 6411 | -4/Upper Caves | Entered Warlord 6420 | -4/Warlord | System corruption cleaned by Quarantine Array 6519 | -4/Warlord | Visited the Vortex Lab 6520 | -4/Warlord | Found Prototype Energy Cannon 6522 | -4/Warlord | Found Prototype Energy Cannon 6539 | -4/Warlord | Warlord's base attacked by MAIN.C 6571 | -4/Warlord | Rebuked by Warlord 6654 | -4/Warlord | Build established: Scavenger-Ninja 6826 | -4/Warlord | Lost 4 allies 6844 | -4/Warlord | Discovered new exit (range 12) 6846 | -4/Warlord | Identified exit to Proximity Caves 6846 | -4/Warlord | Entered Proximity Caves 6900 | -3/Proximity Caves | Discovered exit to Research (range 7) 6901 | -3/Proximity Caves | Entered Research 6901 | -3/Research | Evolved 2 slots: Power x1, Propulsion x1 6902 | -3/Research | Identified exit to Research 6902 | -3/Research | Identified exit to Testing 6903 | -3/Research | Loaded intel: 68 trap records 6905 | -3/Research | Loaded intel: 44 interactive machine locations 6906 | -3/Research | Loaded intel: 21 terminal locations 6981 | -3/Research | Entered another Research area 6981 | -2/Research | Evolved 2 slots: Propulsion x1, Utility x1 7091 | -2/Research | Identified exit to Access 7097 | -2/Research | Identified exit to Quarantine 7106 | -2/Research | Found Fusion Bomb Launcher 7135 | -2/Research | Entered Quarantine 7155 | -2/Quarantine | Crushed by falling debris 7155 | -2/Quarantine | System corruption reached 10% 7186 | -2/Quarantine | Lost 4 parts (1n2u1w) 7273 | -2/Quarantine | Found Alien Impact Weapon 7297 | -2/Quarantine | Discovered exit to Access (range 15) 7327 | -2/Quarantine | Found Alien Artifact 7331 | -2/Quarantine | Spotted Fortress 7341 | -2/Quarantine | Discovered new exit (range 6) 7341 | -2/Quarantine | Discovered new exit (range 7) 7342 | -2/Quarantine | Identified exit to Protoforge 7342 | -2/Quarantine | Identified exit to Section 7 7342 | -2/Quarantine | Entered Section 7 7353 | -2/Section 7 | Found Alien Artifact 7353 | -2/Section 7 | Identified Integrated Reactor 7353 | -2/Section 7 | Installed Integrated Reactor, increased core energy generation (+10) 7362 | -2/Section 7 | Spotted S7 Guard 7370 | -2/Section 7 | Scanned by Researcher 7378 | -2/Section 7 | Found Alien Artifact 7378 | -2/Section 7 | Identified Spacefold Activator 7416 | -2/Section 7 | Identified Vortex Driver (x2) 7425 | -2/Section 7 | Found Alien Artifact 7427 | -2/Section 7 | Identified Core Reset Matrix 7427 | -2/Section 7 | Identified Core Stripper 7427 | -2/Section 7 | Identified Core Physics Calibrator 7427 | -2/Section 7 | Used Core Reset Matrix 7431 | -2/Section 7 | Detected hypermatrix surge 7431 | -2/Section 7 | Sensed 17 artifacts in vicinity 7457 | -2/Section 7 | Build established: Scavenger-Scout 7479 | -2/Section 7 | Spotted Alpha 7 7479 | -2/Section 7 | Spotted Alpha 7 7484 | -2/Section 7 | Spotted B-99 Colossus 7515 | -2/Section 7 | Lost 6 parts (1p4n1u) 7547 | -2/Section 7 | Found Sigix Sheargun 7553 | -2/Section 7 | Found Sigix Sheargun 7594 | -2/Section 7 | Spotted Striker 7594 | -2/Section 7 | Spotted Striker 7602 | -2/Section 7 | Spotted Executioner 7610 | -2/Section 7 | Intercept squad dispatched 7617 | -2/Section 7 | Integrated with Sigix Exoskeleton 7627 | -2/Section 7 | Spotted Tracker 7628 | -2/Section 7 | Spotted Tracker 7655 | -2/Section 7 | Sigix Exoskeleton integrity reduced to 80% 7661 | -2/Section 7 | Core integrity fell below 50% 7665 | -2/Section 7 | Spotted Combat Programmer 7666 | -2/Section 7 | Spotted Combat Programmer 7679 | -2/Section 7 | Destroyed Tracker 7680 | -2/Section 7 | Sigix Exoskeleton integrity reduced to 60% 7723 | -2/Section 7 | Spotted Executioner 7723 | -2/Section 7 | Spotted Executioner 7739 | -2/Section 7 | Discovered exit to Access (range 18) 7755 | -2/Section 7 | Crushed by falling debris 7756 | -2/Section 7 | Sigix Exoskeleton integrity reduced to 40% 7756 | -2/Section 7 | Core integrity fell below 20% 7759 | -2/Section 7 | Entered Access 7759 | -1/Access | Evolved 2 slots: Weapon x2 7764 | -1/Access | Emitted hypermatrix ping 7769 | -1/Access | Assembled emerged from beneath the floor 7900 | -1/Access | Build established: Alien-Sigix 7952 | -1/Access | Discovered new exit (range 18) 7964 | -1/Access | Spotted B-99 Colossus 7964 | -1/Access | Spotted B-99 Colossus 7969 | *** | Heading to fleet! Last Messages --------------- Shell. 07963_ Main Access Shell breached. 07963_ Quantum Shear penetrates Main Access Shell. 07963_ Quantum Shear penetrates Reinforced Barrier. Sealed Heavy Doors opened remotely. 07964_ Slug penetrates Reinforced Barrier. 07964_ Penetrated by Slug. 07964_ Slug penetrates Terminal. 07964_ Penetrated by Slug. 07964_ Slug penetrates Terminal. 07966_ Penetrated by Slug. 07966_ Slug penetrates Reinforced Barrier. 07966_ Penetrated by Slug. 07966_ Slug penetrates Reinforced Barrier. 07967_ Penetrated by Slug. [Achievement: Home At Last?] [Achievement: On My Own Terms] [Achievement: Overachiever] Map ----- +----------------------------------------------------+ | """""" + + ################## # ??? | | """""" # # """""" ########### === # # ??? | | """""" # # """""" ########### === # # ??? | | """""" # # """""" ########### == # # ??? | | # # """""" ### + + + ??? | | # # """""" [### ####### # # ?? | | ########### ################ ####### = # # ?? | | + ################+############## # ?? | | # # """"" ############# # ?? | | # # ""T"" ############# ###?? | | ????? # # + ??? | | ?????? # # ####### ###?? | | ??????? # # # # ##??? | | ???????? # # u # + ##??? | | ???????? # + # ####### ##??? | | ???????? # #############"""### ####### ##??? | | ????????### u############# ############### ??? | | ????????### R############## ################ ???? | | ????????### ############## ################ ???? | | ????????###k ####### ####################### ???? | | ???????? ## R"""T""" % ### ????? | | ???????? ## s""" """ BB ### ????? | | ???????""## s ss BB ###?????? | | ???????""## ?????? | | ???????""## "" ?????? | | ????????T## % X" ?????? | | ????????"## BB ?????? | | ????????"## s BB ##??????? | | ????????"## k # ??????? | | ???????? ## # ??????? | | ?????????## ####### #####################???????? | | ?????????## ############# ###############???????? | | ?????????## ############# ###############???????? | | ??????????# ############### """T""" ????????? | | ??????????? ############### """ """ ?????????? | | ??????????? C############### ?????????? | | ???????????? ############### ??????????? | | ?????????????## #### ???????????? | | ??????????????#[ #### ????????????? | | ???????????????? " #####+####+??????????????? | | ????????????????? """ ##### ### ???????????????? | | ???????????????????? ##### #??????????????????? | | ?????????????????????????#???????????????????????? | | ?????????????????????????????????????????????????? | | ?????????????????????????????????????????????????? | | ?????????????????????????????????????????????????? | | ?????????????????????????????????????????????????? | | ?????????????????????????????????????????????????? | | ?????????????????????????????????????????????????? | | ?????????????????????????????????????????????????? | +----------------------------------------------------+ Best States ------------- Heat Dissipation 122 Energy Generation 77 Energy Capacity 470 Matter Stores 300 Matter Capacity 300 Sight Range 16 Robot Scan Range 20 Terrain Scan Range 20 Terrain Scan Density 10 Cloak Strength 3 Armor Coverage 225 Resistance: KI 50 Resistance: TH 50 Resistance: EX 50 Resistance: EM 50 Resistance: I 50 Resistance: S 50 Resistance: P 50 Melee Speed Boost 20 Evasion (%) 76 Recoil Reduction 2 Offensive Hacking 10 Defensive Hacking 20 Item Schematics ----------------- None Robot Schematics ------------------ None Fabricated ------------ Nothing Repaired ---------- Imp. Cloaking Device | 51% | -6/Factory | Broken Studied --------- None Alien Tech Used ----------------- Integrated Reactor Spacefold Activator Core Reset Matrix Core Physics Calibrator Sigix Exoskeleton Sigix Sheargun Core Stripper Achievements -------------- Home At Last? Hornet's Nest Integration Complete On My Own Terms Overachiever Sacrificial Teamwork Turtlemind Challenges ------------ None Game ------ Seed ActuatorActiveBoregun Manual? 0 Play Time 02:16:40 Cumulative 138.0 hours Start 2026.07.31 @ 22:24:18 End 2026.08.01 @ 00:43:57 Sessions 1 Manual Loads 0 Difficulty Rogue Special Mode None Game No. 151 Rogue 97 Adventurer 54 Explorer 0 Win Type 2 Total 6 Types 3/0/1/1/0/0/0/0/0/1 Lore% 58 Gallery% 54 Achievement% 50 Wizard Run 0 Options --------- Layout 1 ASCII 0 Keyboard 0 Movement Mouse Keybinds 1 Fullscreen 2 Font 32/Tamsyn Map View 50x35 Zoom Use 0% Tactical HUD 1 Map Filters NONE Filters NONE Steam 1 RUN: 082fe655-4c7e-43e9-a761-8224100fc5bb